fUST/lending_fUST_20240225
["ID","MTS","AMOUNT","RATE_DAILY","PERIOD"]
[315063314,1708800431654,-500.0,0.00019452,2]
[315063315,1708800431675,-500.0,0.00019452,2]
[315063316,1708800431695,-500.0,0.00019452,2]
[315063317,1708800431716,-500.0,0.00019452,2]
[315063318,1708800431738,-500.0,0.00019452,2]
[315063319,1708800431758,-515.24,0.00019452,2]
[315063320,1708800431779,-500.0,0.00019452,2]
[315063321,1708800431801,-8046.11,0.00019452,2]
[315063322,1708800431823,-754.91,0.00019452,2]
[315063323,1708800431844,-500.0,0.00019452,2]
[315063324,1708800431865,-9927.91,0.00019452,2]
[315063325,1708800431988,-500.0,0.00019452,2]
[315063326,1708800432011,-500.0,0.00019452,2]
[315063327,1708800432032,-500.0,0.00019452,2]
[315063328,1708800432054,-500.0,0.00019452,2]
[315063329,1708800432075,-500.0,0.00019452,2]
[315063330,1708800432096,-500.0,0.00019452,2]
[315063331,1708800432117,-500.0,0.00019452,2]
[315063332,1708800432138,-642.68,0.00019452,2]
[315063333,1708800432161,-500.0,0.00019452,2]
[315063334,1708800432181,-500.0,0.00019452,2]
[315063335,1708800432207,-500.0,0.00019452,2]
[315063336,1708800432228,-811.09,0.00019452,2]
[315063337,1708800432249,-500.0,0.00019452,2]
[315063338,1708800432271,-920.14,0.00019452,2]
[315063339,1708800432292,-500.0,0.00019452,2]
[315063340,1708800432312,-500.0,0.00019452,2]
[315063341,1708800432333,-500.0,0.00019452,2]
[315063342,1708800432353,-500.0,0.00019452,2]
[315063343,1708800432374,-500.0,0.00019452,2]
[315063344,1708800432396,-5551.08823382,0.00019461,2]
[315063345,1708800432417,-5551.08823382,0.00019465,2]
[315063346,1708800432436,-185.54660767,0.00019471,2]
[315063347,1708800432456,-185.54660767,0.00019479,2]
[315063348,1708800432478,-5551.08823382,0.00019492,2]
[315063349,1708800432505,-185.54660767,0.00019499,2]
[315063350,1708800432525,-467.8109038,0.00019543,2]
[315063351,1708800432547,-166.666666,0.00019627,2]
[315063352,1708800432569,-478.6860573,0.00019689,2]
[315063353,1708800432590,-500.0,0.00019689,2]
[315063354,1708800432612,-1846.2,0.00019689,2]
[315063355,1708800432632,-500.0,0.00019689,2]
[315063356,1708800432652,-950.99,0.00019695,2]
[315063357,1708800432673,-500.0,0.00019695,2]
[315063358,1708800432694,-500.0,0.00019695,2]
[315063359,1708800432715,-1295.61,0.00019695,2]
[315063360,1708800432736,-1028.32,0.00019695,2]
[315063361,1708800432757,-500.0,0.00019695,2]
[315063362,1708800432779,-500.0,0.00019695,2]
[315063363,1708800432800,-500.0,0.00019695,2]
[315063364,1708800432820,-500.0,0.00019695,2]
[315063365,1708800432841,-500.0,0.00019695,2]
[315063366,1708800432862,-500.0,0.00019695,2]
[315063367,1708800432885,-4187.66305356,0.000197,2]
[315063368,1708800432905,-4187.66305356,0.000197,2]
[315063369,1708800432925,-4187.66305356,0.000197,2]
[315063370,1708800432946,-578.10372524,0.00019701,2]
[315063371,1708800432966,-500.0,0.00019701,2]
[315063372,1708800432987,-500.0,0.00019701,2]
[315063373,1708800433007,-500.0,0.00019701,2]
[315063374,1708800433026,-500.0,0.00019701,2]
[315063375,1708800433049,-546.05,0.00019701,2]
[315063376,1708800433071,-500.0,0.00019701,2]
[315063377,1708800433092,-500.0,0.00019701,2]
[315063378,1708800433112,-500.0,0.00019701,2]
[315063379,1708800433132,-500.0,0.00019701,2]
[315063380,1708800433151,-249.69840039,0.00019701,2]
[315063381,1708800433172,-500.63186668,0.00019701,2]
[315063382,1708800433192,-380.71677429,0.00019701,2]
[315063383,1708800433216,-500.0,0.00019701,2]
[315063384,1708800433241,-500.0,0.00019701,2]
[315063385,1708800433260,-500.0,0.00019701,2]
[315063386,1708800433281,-500.0,0.00019701,2]
[315063387,1708800433302,-500.0,0.00019701,2]
[315063388,1708800433323,-500.0,0.00019701,2]
[315063389,1708800433343,-500.0,0.00019701,2]
[315063390,1708800433363,-818.53,0.00019701,2]
[315063391,1708800433384,-500.0,0.00019701,2]
[315063392,1708800433405,-510.72,0.00019701,2]
[315063393,1708800433425,-701.74,0.00019701,2]
[315063394,1708800433445,-500.0,0.00019701,2]
[315063395,1708800433465,-500.0,0.00019701,2]
[315063396,1708800433485,-500.0,0.00019701,2]
[315063397,1708800433507,-500.0,0.00019701,2]
[315063398,1708800433526,-500.0,0.00019701,2]
[315063399,1708800433547,-500.0,0.00019701,2]
[315063400,1708800433568,-500.0,0.00019701,2]
[315063401,1708800433588,-500.0,0.00019701,2]
[315063402,1708800433609,-500.0,0.00019701,2]
[315063403,1708800433630,-500.0,0.00019701,2]
[315063404,1708800433651,-500.0,0.00019701,2]
[315063405,1708800433671,-500.0,0.00019701,2]
[315063406,1708800433691,-500.0,0.00019701,2]
[315063407,1708800433712,-1404.72,0.00019701,2]
[315063408,1708800433733,-500.0,0.00019701,2]
[315063409,1708800433753,-500.0,0.00019701,2]
[315063410,1708800433774,-1167.23,0.00019701,2]
[315063411,1708800433794,-500.0,0.00019701,2]
[315063412,1708800433815,-504.2479257,0.00019701,2]
[315063413,1708800433835,-500.0,0.00019701,2]
[315063414,1708800433856,-500.0,0.00019701,2]
[315063415,1708800433876,-500.0,0.00019701,2]
[315063416,1708800433899,-500.0,0.00019701,2]
[315063417,1708800433920,-500.0,0.00019701,2]
[315063418,1708800433940,-500.0,0.00019701,2]
[315063419,1708800433962,-500.0,0.00019701,2]
[315063420,1708800433982,-500.0,0.00019701,2]
[315063421,1708800434003,-500.0,0.00019704,2]
[315063422,1708800434024,-376.35776166,0.00019725,2]
[315063423,1708800434045,-500.0,0.00019725,2]
[315063424,1708800434067,-963.72,0.00019725,2]
[315063425,1708800434089,-3996.09,0.00019725,2]
[315063426,1708800434111,-6682.03,0.00019725,2]
[315063427,1708800434133,-1548.43,0.00019725,2]
[315063428,1708800434154,-1390.83,0.00019725,2]
[315063429,1708800434179,-500.0,0.00019725,2]
[315063430,1708800434203,-1372.42,0.00019725,2]
[315063431,1708800434223,-500.0,0.00019725,2]
[315063432,1708800434245,-6417.31,0.00019725,2]
[315063433,1708800434265,-2303.42,0.00019725,2]
[315063434,1708800434288,-500.0,0.00019725,2]
[315063435,1708800434309,-500.0,0.00019726,2]
[315063436,1708800434330,-500.0,0.00019726,2]
[315063437,1708800434351,-500.0,0.00019726,2]
[315063438,1708800434372,-500.0,0.00019726,2]
[315063439,1708800434393,-500.0,0.00019726,2]
[315063440,1708800434413,-650.46,0.00019726,2]
[315063441,1708800434433,-500.0,0.00019726,2]
[315063442,1708800434453,-500.0,0.00019726,2]
[315063443,1708800434474,-500.0,0.00019726,2]
[315063444,1708800434495,-577.32348344,0.00019726,2]
[315063445,1708800434515,-500.0,0.00019726,2]
[315063446,1708800434535,-1621.65,0.00019726,2]
[315063447,1708800434555,-500.0,0.00019726,2]
[315063448,1708800434579,-1740.84,0.00019726,2]
[315063449,1708800434603,-500.0,0.00019726,2]
[315063450,1708800434625,-500.0,0.00019726,2]
[315063451,1708800434645,-596.20651397,0.00019726,2]
[315063452,1708800434666,-500.0,0.00019726,2]
[315063453,1708800434686,-500.0,0.00019726,2]
[315063454,1708800434706,-500.0,0.00019726,2]
[315063455,1708800434728,-500.0,0.00019726,2]
[315063456,1708800434748,-500.0,0.00019726,2]
[315063457,1708800434770,-515.24,0.00019726,2]
[315063458,1708800434791,-500.0,0.00019726,2]
[315063459,1708800434813,-8046.11,0.00019726,2]
[315063460,1708800434835,-754.91,0.00019726,2]
[315063461,1708800434857,-500.0,0.00019726,2]
[315063462,1708800434975,-6479.54693443,0.00019726,2]
[315063463,1708800435073,-389.05948452,0.00019452,2]
[315063464,1708800435094,-3448.36306557,0.00019726,2]
[315063465,1708800435113,-500.0,0.00019726,2]
[315063466,1708800435133,-500.0,0.00019726,2]
[315063467,1708800435155,-500.0,0.00019726,2]
[315063468,1708800435175,-500.0,0.00019726,2]
[315063469,1708800435198,-500.0,0.00019726,2]
[315063470,1708800435221,-500.0,0.00019726,2]
[315063471,1708800435242,-642.68,0.00019726,2]
[315063472,1708800435262,-500.0,0.00019726,2]
[315063473,1708800435281,-500.0,0.00019726,2]
[315063474,1708800435302,-500.0,0.00019726,2]
[315063475,1708800435322,-811.09,0.00019726,2]
[315063476,1708800435340,-500.0,0.00019726,2]
[315063477,1708800435360,-920.14,0.00019726,2]
[315063478,1708800435381,-500.0,0.00019726,2]
[315063479,1708800435401,-500.0,0.00019726,2]
[315063480,1708800435420,-500.0,0.00019726,2]
[315063481,1708800435440,-500.0,0.00019726,2]
[315063482,1708800435459,-305.08549894,0.00019726,2]
[315063483,1708800435479,-467.8109038,0.00019761,2]
[315063484,1708800435500,-500.0,0.00019963,2]
[315063485,1708800435521,-1846.2,0.00019963,2]
[315063486,1708800435542,-500.0,0.00019963,2]
[315063487,1708800435563,-950.99,0.00019969,2]
[315063488,1708800435585,-500.0,0.00019969,2]
[315063489,1708800435607,-1295.61,0.00019969,2]
[315063490,1708800435628,-1028.32,0.00019969,2]
[315063491,1708800435647,-500.0,0.00019969,2]
[315063492,1708800435667,-287.05748937,0.00019969,2]
[315063493,1708800435690,-501.19258491,0.00019969,2]
[315063494,1708800435710,-500.0,0.00019969,2]
[315063495,1708800435733,-501.09651573,0.00019969,2]
[315063496,1708800435753,-500.0,0.00019975,2]
[315063497,1708800435773,-500.0,0.00019975,2]
[315063498,1708800435794,-500.0,0.00019975,2]
[315063499,1708800435814,-546.05,0.00019975,2]
[315063500,1708800435836,-500.0,0.00019975,2]
[315063501,1708800435855,-500.0,0.00019975,2]
[315063502,1708800435875,-500.0,0.00019975,2]
[315063503,1708800435894,-500.0,0.00019975,2]
[315063504,1708800435913,-500.0,0.00019975,2]
[315063505,1708800435933,-500.0,0.00019975,2]
[315063506,1708800435953,-818.53,0.00019975,2]
[315063507,1708800435973,-500.0,0.00019975,2]
[315063508,1708800435993,-510.72,0.00019975,2]
[315063509,1708800436013,-701.74,0.00019975,2]
[315063510,1708800436033,-500.0,0.00019975,2]
[315063511,1708800436054,-500.0,0.00019975,2]
[315063512,1708800436075,-500.0,0.00019975,2]
[315063513,1708800436095,-500.0,0.00019975,2]
[315063514,1708800436114,-500.0,0.00019975,2]
[315063515,1708800436133,-500.0,0.00019975,2]
[315063516,1708800436153,-500.0,0.00019975,2]
[315063517,1708800436173,-500.0,0.00019975,2]
[315063518,1708800436193,-1404.72,0.00019975,2]
[315063519,1708800436216,-500.0,0.00019975,2]
[315063520,1708800436235,-500.0,0.00019975,2]
[315063521,1708800436257,-1167.23,0.00019975,2]
[315063522,1708800436277,-500.0,0.00019975,2]
[315063523,1708800436297,-500.0,0.00019975,2]
[315063524,1708800436317,-157.56559089,0.00019975,2]
[315063525,1708800436336,-500.0,0.00019975,2]
[315063526,1708800436356,-500.0,0.00019975,2]
[315063527,1708800436376,-500.0,0.00019975,2]
[315063528,1708800436395,-500.0,0.00019975,2]
[315063529,1708800436415,-500.0,0.00019975,2]
[315063530,1708800436437,-467.8109038,0.00019978,2]
[315063531,1708800436456,-999.35260013,0.00019999,2]
[315063532,1708800436477,-500.0,0.00019999,2]
[315063533,1708800436496,-500.0,0.00019999,2]
[315063534,1708800436516,-963.72,0.00019999,2]
[315063535,1708800436535,-3996.09,0.00019999,2]
[315063536,1708800436556,-6682.03,0.00019999,2]
[315063537,1708800436575,-1548.43,0.00019999,2]
[315063538,1708800436595,-1390.83,0.00019999,2]
[315063539,1708800436615,-500.0,0.00019999,2]
[315063540,1708800436634,-1372.42,0.00019999,2]
[315063541,1708800436654,-500.0,0.00019999,2]
[315063542,1708800436674,-6417.31,0.00019999,2]
[315063543,1708800436694,-2303.42,0.00019999,2]
[315063544,1708800436713,-500.0,0.0002,2]
[315063545,1708800436732,-500.0,0.0002,2]
[315063546,1708800436753,-500.0,0.0002,2]
[315063547,1708800436772,-650.46,0.0002,2]
[315063548,1708800436791,-500.0,0.0002,2]
[315063549,1708800436809,-500.0,0.0002,2]
[315063550,1708800436828,-357.99725575,0.0002,2]
[315063551,1708800436849,-500.0,0.0002,2]
[315063552,1708800436867,-1621.65,0.0002,2]
[315063553,1708800436887,-500.0,0.0002,2]
[315063554,1708800436906,-1740.84,0.0002,2]
[315063555,1708800436926,-163.36782177,0.0002,2]
[315063556,1708800436946,-500.0,0.0002,2]
[315063557,1708800436966,-544.48,0.0002,2]
[315063558,1708800436986,-501.06102034,0.0002,2]
[315063559,1708800437006,-176.97769757,0.0002,2]
[315063560,1708800437025,-515.24,0.0002,2]
[315063561,1708800437045,-500.0,0.0002,2]
[315063562,1708800437067,-8046.11,0.0002,2]
[315063563,1708800437087,-754.91,0.0002,2]
[315063564,1708800437107,-5382.02199691,0.0002,2]
[315063565,1708800437365,-67786.33,0.00019417,3]
[315063566,1708800437386,-4545.88800309,0.0002,2]
[315063567,1708800437406,-500.0,0.0002,2]
[315063568,1708800437427,-500.0,0.0002,2]
[315063569,1708800437447,-500.0,0.0002,2]
[315063570,1708800437467,-501.9076383,0.0002,2]
[315063571,1708800437591,-500.0,0.0002,2]
[315063572,1708800437610,-987.0,0.0002,4]
[315063573,1708800437631,-642.68,0.0002,2]
[315063574,1708800437652,-500.0,0.0002,2]
[315063575,1708800437672,-541.0,0.0002,4]
[315063576,1708800437692,-542.60392477,0.0002,2]
[315063577,1708800437714,-130.09618384,0.0002,2]
[315063578,1708800446088,-883.41,0.00019421,2]
[315063579,1708800446110,-500.0,0.00019427,2]
[315063580,1708800446131,-883.41,0.00019695,2]
[315063581,1708800446150,-213.80130036,0.00019968,2]
[315063582,1708800446171,-883.41,0.00019969,2]
[315063583,1708800446192,-56488.61,0.0001999,3]
[315063584,1708800446216,-704.04980982,0.00019998,2]
[315063585,1708800446236,-212.46551129,0.00019999,2]
[315063586,1708800446257,-154.93802479,0.00019999,2]
[315063587,1708800446279,-369.90381616,0.0002,2]
[315063588,1708800446302,-811.09,0.0002,2]
[315063589,1708800446322,-500.0,0.0002,2]
[315063590,1708800446343,-920.14,0.0002,2]
[315063591,1708800446362,-792.64185061,0.0002,4]
[315063592,1708800446383,-548.44878912,0.0002,2]
[315063593,1708800446404,-559.40281713,0.0002,2]
[315063594,1708800446425,-442.12465368,0.0002,2]
[315063595,1708800446446,-500.0,0.0002,2]
[315063596,1708800446465,-166.666666,0.00020076,2]
[315063597,1708800446486,-500.0,0.00020094,2]
[315063598,1708800446506,-1862.95184537,0.00020137,2]
[315063599,1708800446527,-500.0,0.00020147,2]
[315063600,1708800446547,-500.0,0.00020154,2]
[315063601,1708800446569,-96832.36949399,0.00020179,2]
[315063602,1708800446595,-467.8109038,0.00020195,2]
[315063603,1708800446615,-500.0,0.00020201,2]
[315063604,1708800446637,-50000.0,0.00020231,2]
[315063605,1708800446658,-500.0,0.00020237,2]
[315063606,1708800446678,-1846.2,0.00020237,2]
[315063607,1708800446699,-500.0,0.00020237,2]
[315063608,1708800446719,-500.0,0.00020243,2]
[315063609,1708800446740,-1295.61,0.00020243,2]
[315063610,1708800446761,-1028.32,0.00020243,2]
[315063611,1708800446781,-500.0,0.00020243,2]
[315063612,1708800446800,-500.0,0.00020243,2]
[315063613,1708800446821,-883.41,0.00020243,2]
[315063614,1708800446840,-500.0,0.00020249,2]
[315063615,1708800446860,-546.05,0.00020249,2]
[315063616,1708800446880,-500.0,0.00020249,2]
[315063617,1708800446901,-500.0,0.00020249,2]
[315063618,1708800446921,-500.0,0.00020249,2]
[315063619,1708800446940,-500.0,0.00020249,2]
[315063620,1708800446959,-818.53,0.00020249,2]
[315063621,1708800446979,-500.0,0.00020249,2]
[315063622,1708800446999,-510.72,0.00020249,2]
[315063623,1708800447018,-701.74,0.00020249,2]
[315063624,1708800447038,-174.74393213,0.00020249,2]
[315063625,1708800447058,-500.0,0.00020249,2]
[315063626,1708800447078,-500.0,0.00020249,2]
[315063627,1708800447099,-215.77884278,0.00020249,2]
[315063628,1708800447119,-500.0,0.00020249,2]
[315063629,1708800447140,-500.0,0.00020249,2]
[315063630,1708800447160,-500.0,0.00020249,2]
[315063631,1708800447179,-500.0,0.00020249,2]
[315063632,1708800447201,-1404.72,0.00020249,2]
[315063633,1708800447227,-500.0,0.00020249,2]
[315063634,1708800447248,-1167.23,0.00020249,2]
[315063635,1708800447269,-500.0,0.00020249,2]
[315063636,1708800447290,-500.0,0.00020249,2]
[315063637,1708800447310,-500.0,0.00020249,2]
[315063638,1708800447330,-500.0,0.00020249,2]
[315063639,1708800447350,-500.0,0.00020249,2]
[315063640,1708800447369,-460.0,0.00020249,2]
[315063641,1708800447389,-570.86585573,0.00020254,2]
[315063642,1708800447409,-500.0,0.00020273,2]
[315063643,1708800447428,-650.46,0.00020273,2]
[315063644,1708800447447,-500.0,0.00020273,2]
[315063645,1708800447466,-500.0,0.00020273,2]
[315063646,1708800447485,-500.0,0.00020273,2]
[315063647,1708800447505,-1621.65,0.00020273,2]
[315063648,1708800447525,-500.0,0.00020273,2]
[315063649,1708800447546,-1740.84,0.00020273,2]
[315063650,1708800447567,-3996.09,0.00020273,2]
[315063651,1708800447587,-500.0,0.00020273,2]
[315063652,1708800447610,-6682.03,0.00020273,2]
[315063653,1708800447630,-1548.43,0.00020273,2]
[315063654,1708800447649,-515.24,0.00020273,2]
[315063655,1708800447669,-500.0,0.00020273,2]
[315063656,1708800447690,-1390.83,0.00020273,2]
[315063657,1708800447711,-8046.11,0.00020273,2]
[315063658,1708800447733,-754.91,0.00020273,2]
[315063659,1708800447754,-9927.91,0.00020273,2]
[315063660,1708800447776,-500.0,0.00020273,2]
[315063661,1708800447796,-500.0,0.00020273,2]
[315063662,1708800447817,-1372.42,0.00020273,2]
[315063663,1708800447836,-500.0,0.00020273,2]
[315063664,1708800447857,-500.0,0.00020273,2]
[315063665,1708800447958,-500.0,0.00020273,2]
[315063666,1708800447999,-642.68,0.00020273,2]
[315063667,1708800448022,-500.0,0.00020273,2]
[315063668,1708800448043,-500.0,0.00020273,2]
[315063669,1708800448065,-502.18556509,0.00020273,2]
[315063670,1708800448086,-811.09,0.00020273,2]
[315063671,1708800448106,-500.0,0.00020273,2]
[315063672,1708800448127,-6417.31,0.00020273,2]
[315063673,1708800448149,-920.14,0.00020273,2]
[315063674,1708800448170,-500.0,0.00020273,2]
[315063675,1708800448193,-2303.42,0.00020273,2]
[315063676,1708800448220,-50000.0,0.00020283,2]
[315063677,1708800448239,-19899.8849389,0.00020295,2]
[315063678,1708800448263,-50000.0,0.00020335,2]
[315063679,1708800448285,-36944.30664325,0.00020353,2]
[315063680,1708800448400,-39723.5851391,0.00020353,2]
[315063681,1708800448421,-24235.0325009,0.00020353,2]
[315063721,1708800631913,-2832.04687078,0.000187,2]
[315063723,1708800631924,-2965.59921552,0.000187,2]
[315063725,1708800631934,-500.0,0.00019178,2]
[315063727,1708800631944,-597.64,0.00019178,2]
[315063729,1708800631954,-500.0,0.00019178,2]
[315063731,1708800631963,-500.0,0.00019178,2]
[315063733,1708800631973,-428.24448266,0.00019178,2]
[315063736,1708800631982,-500.0,0.00019178,2]
[315063738,1708800631992,-1079.68,0.00019178,2]
[315063740,1708800632001,-6369.84,0.00019178,2]
[315063741,1708800632010,-500.0,0.00019178,2]
[315063742,1708800632020,-320.57,0.00019178,2]
[315063743,1708800632029,-500.0,0.00019178,2]
[315063744,1708800632039,-294.90521333,0.00019178,2]
[315063745,1708800632049,-719.51,0.00019178,2]
[315063746,1708800632058,-500.0,0.00019178,2]
[315063747,1708800632068,-500.0,0.00019178,2]
[315063748,1708800632077,-508.79,0.00019178,2]
[315063749,1708800632087,-500.0,0.00019178,2]
[315063751,1708800632096,-500.0,0.00019178,2]
[315063753,1708800632106,-500.0,0.00019178,2]
[315063755,1708800632116,-500.0,0.00019178,2]
[315063757,1708800632125,-177.06876316,0.00019178,2]
[315063759,1708800632134,-615.07,0.00019178,2]
[315063761,1708800632145,-500.0,0.00019178,2]
[315063763,1708800632154,-728.44,0.00019178,2]
[315063765,1708800632164,-500.0,0.00019178,2]
[315063767,1708800632173,-500.0,0.00019178,2]
[315063769,1708800632182,-736.18,0.00019178,2]
[315063771,1708800632191,-500.0,0.00019178,2]
[315063773,1708800632200,-500.0,0.00019178,2]
[315063775,1708800632209,-500.0,0.00019178,2]
[315063777,1708800632218,-3669.97,0.00019178,2]
[315063779,1708800632228,-500.0,0.00019178,2]
[315063782,1708800632237,-5846.78,0.00019178,2]
[315063783,1708800632246,-500.0,0.00019178,2]
[315063786,1708800632256,-832.11,0.00019178,2]
[315063787,1708800632268,-7859.6,0.00019325,2]
[315063789,1708800632277,-502.75770034,0.00019415,2]
[315063790,1708800632286,-334.1222498,0.00019421,2]
[315063792,1708800632295,-1354.88,0.00019421,2]
[315063794,1708800632305,-1538.5,0.00019421,2]
[315063796,1708800632315,-1216.98,0.00019421,2]
[315063798,1708800632324,-500.0,0.00019421,2]
[315063799,1708800632334,-1200.87,0.00019421,2]
[315063801,1708800632345,-500.0,0.00019421,2]
[315063803,1708800632355,-13060.51001519,0.00019422,3]
[315063805,1708800632367,-8737.96638787,0.00019422,3]
[315063808,1708800632378,-10891.69359694,0.00019422,3]
[315063810,1708800632387,-500.0,0.00019427,2]
[315063812,1708800632396,-500.0,0.00019427,2]
[315063814,1708800632405,-500.0,0.00019427,2]
[315063815,1708800632414,-500.90707381,0.00019427,2]
[315063817,1708800632424,-500.0,0.00019427,2]
[315063819,1708800632435,-500.0,0.00019427,2]
[315063821,1708800632444,-1467.89,0.00019427,2]
[315063823,1708800632453,-500.0,0.00019427,2]
[315063825,1708800632463,-819.25,0.00019427,2]
[315063827,1708800632472,-500.0,0.00019427,2]
[315063829,1708800632482,-500.0,0.00019427,2]
[315063831,1708800632491,-1457.43,0.00019427,2]
[315063833,1708800632500,-500.0,0.00019427,2]
[315063835,1708800632509,-500.0,0.00019427,2]
[315063838,1708800632519,-500.0,0.00019427,2]
[315063840,1708800632529,-500.0,0.00019427,2]
[315063841,1708800632538,-39228.2,0.00019432,3]
[315063843,1708800632548,-500.0,0.00019437,2]
[315063844,1708800632557,-500.0,0.00019437,2]
[315063846,1708800632567,-33432.40975925,0.00019442,3]
[315063848,1708800632585,-13641.43024075,0.00019442,3]
[315063850,1708800632594,-500.0,0.00019447,2]
[315063852,1708800632603,-500.0,0.00019447,2]
[315063853,1708800632612,-500.0,0.0001945,2]
[315063854,1708800632622,-500.0,0.00019451,2]
[315063855,1708800632631,-500.0,0.00019451,2]
[315063856,1708800632640,-500.0,0.00019452,2]
[315063857,1708800632650,-597.64,0.00019452,2]
[315063858,1708800632659,-500.0,0.00019452,2]
[315063859,1708800632668,-1079.68,0.00019452,2]
[315063860,1708800632678,-5674.87249432,0.00019452,2]
[315063886,1708800639536,-500.0,0.00019178,2]
[315063888,1708800639545,-1298.43,0.00019178,2]
[315063890,1708800639555,-500.0,0.00019441,2]
[315063892,1708800639564,-500.0,0.00019441,2]
[315063894,1708800639573,-208.7335227,0.00019441,2]
[315063896,1708800639583,-500.0,0.00019441,2]
[315063898,1708800639592,-500.0,0.00019441,2]
[315063900,1708800639602,-500.0,0.00019441,2]
[315063902,1708800639611,-500.0,0.00019441,2]
[315063903,1708800639624,-500.0,0.00019441,2]
[315063904,1708800639633,-389.15418648,0.00019441,2]
[315063905,1708800639643,-694.96750568,0.00019452,2]
[315063906,1708800639653,-500.0,0.00019452,2]
[315063907,1708800639662,-719.51,0.00019452,2]
[315063909,1708800639672,-500.0,0.00019452,2]
[315063910,1708800639683,-500.0,0.00019452,2]
[315063912,1708800639692,-508.79,0.00019452,2]
[315063913,1708800639702,-501.57235247,0.00019452,2]
[315063914,1708800639711,-500.0,0.00019452,2]
[315063915,1708800639721,-500.0,0.00019452,2]
[315063916,1708800639731,-615.07,0.00019452,2]
[315063917,1708800639739,-496.85137534,0.00019452,2]
[315063919,1708800639749,-728.44,0.00019452,2]
[315063921,1708800639758,-500.0,0.00019452,2]
[315063923,1708800639768,-500.0,0.00019452,2]
[315063925,1708800639777,-736.18,0.00019452,2]
[315063927,1708800639787,-524.59,0.00019452,2]
[315063928,1708800639796,-500.0,0.00019452,2]
[315063930,1708800639806,-3669.97,0.00019452,2]
[315063931,1708800639815,-500.0,0.00019452,2]
[315063932,1708800639824,-5846.78,0.00019452,2]
[315063934,1708800639834,-832.11,0.00019452,2]
[315063935,1708800639844,-1298.43,0.00019452,2]
[315063936,1708800639855,-7859.6,0.00019599,2]
[315063937,1708800639865,-1063.54619526,0.00019695,2]
[315064016,1708800644415,-474.95380474,0.00019695,2]
[315064017,1708800644424,-1216.98,0.00019695,2]
[315064018,1708800644435,-307.42899316,0.00019695,2]
[315064019,1708800644443,-1200.87,0.00019695,2]
[315064020,1708800644453,-306.24740876,0.00019701,2]
[315064021,1708800644462,-500.0,0.00019701,2]
[315064022,1708800644471,-911.54177569,0.00019701,2]
[315064023,1708800644482,-556.34822431,0.00019701,2]
[315064024,1708800644491,-335.07009229,0.00019701,2]
[315064025,1708800644500,-819.25,0.00019701,2]
[315064026,1708800644509,-500.0,0.00019701,2]
[315064027,1708800644517,-500.0,0.00019701,2]
[315064028,1708800644526,-1457.43,0.00019701,2]
[315064029,1708800644535,-500.71233704,0.00019701,2]
[315064030,1708800644543,-588.19481873,0.00019724,2]
[315064031,1708800644553,-500.0,0.00019725,2]
[315064032,1708800644562,-500.0,0.00019725,2]